Cogmind - Beta 15 @@@ ROGUE MODE // 2025.06.21 @ 16:02:54 Player: Mogwok Wargfriend Result: Destroyed by 8U-FVJ(R) with Subdweller Laser Performance ------------- Evolutions (0) 0 Regions Visited (3) 600 Robots Destroyed (32) 160 Value Destroyed (429) 429 Prototype IDs (2) 40 Alien Tech Used (0) 0 Bonus (0) 0 TOTAL SCORE: 1229 Bonus ------- None Cogmind --------- Core Integrity 0/250 Matter 266/300 Energy 97/100 System Corruption 0% Temperature Cool (6) Movement Walking (120) Location -10/Subcaves Parts ------- > --- POWER (1) -------- (None) > --- PROPULSION (2) --- Aluminum Leg Aluminum Leg > --- UTILITY (2) ------ Small Storage Unit Seismic Detector > --- WEAPON (2) ------- Particle Gun Light Assault Rifle > --- INVENTORY (8) ---- Ion Engine Light Treads Light Treads Aluminum Leg Experimental Sensor Array Light Assault Rifle Light Assault Rifle Mining Laser Peak State ------------ > --- POWER ------------ Ion Engine > --- PROPULSION ------- Aluminum Leg Aluminum Leg > --- UTILITY ---------- Small Storage Unit Seismic Detector > --- WEAPON ----------- Particle Gun Light Assault Rifle > --- INVENTORY -------- Ion Engine Light Treads Light Treads Aluminum Leg Experimental Sensor Array Light Assault Rifle Light Assault Rifle Mining Laser [Rating: 9] Favorites ----------- Power Ion Engine Engine Ion Engine Propulsion Wheel Treads Light Treads Leg Aluminum Leg Wheel Wheel Utility Small Storage Unit Device Seismic Detector Storage Small Storage Unit Weapon Light Assault Rifle Energy Gun Particle Gun Ballistic Gun Light Assault Rifle Special Weapon Mining Laser Build | -11 -10 -10 -10 ------- Run | Yrd Mat Min Sub Slots Evolved . | . . . . Power . | . . . . Propulsion . | . . . . Utility . | . . . . Weapon . | . . . . Parts Attached 25 | 8 13 2 2 Power 3 | 1 2 . . Engine 3 | 1 2 . . Core . | . . . . Reactor . | . . . . Propulsion 8 | 3 4 1 . Treads 2 | . 2 . . Leg 3 | . 2 1 . Wheel 3 | 3 . . . Hover . | . . . . Flight . | . . . . Utility 4 | 2 2 . . Device 3 | 1 2 . . Storage 1 | 1 . . . Processor . | . . . . Hackware . | . . . . Protection . | . . . . Artifact . | . . . . Weapon 10 | 2 5 1 2 Energy Gun 3 | 1 2 . . Energy Cannon . | . . . . Ballistic Gun 5 | 1 2 1 1 Ballistic Cannon . | . . . . Launcher . | . . . . Special Weapon 2 | . 1 . 1 Impact Weapon . | . . . . Slashing Weapon . | . . . . Piercing Weapon . | . . . . Special Melee Weapon . | . . . . Unidentified Prototypes . | . . . . Parts Lost 7 | . 6 . 1 Power 2 | . 1 . 1 Propulsion 2 | . 2 . . Utility 1 | . 1 . . Weapon 2 | . 2 . . Highest Loss Streak 3 | . 3 . 1 To Critical Strikes . | . . . . Average Backups 7 | 4 7 8 8 Power . | . . 1 1 Propulsion 4 | 2 4 3 3 Utility . | . . . 1 Weapon 2 | . 2 3 3 Tool/Special . | . . . . Unused Backups 5 | . 3 . 2 Power 1 | . . . 1 Propulsion 3 | . 2 . 1 Utility . | . . . . Weapon . | . . . . Tool/Special 1 | . 1 . . Average Slot Usage (%) 96 | . 94 100 99 Engine 13 | . 14 14 13 Treads 2 | . 3 . . Leg 11 | . 4 28 28 Wheel 14 | . 20 . . Device 10 | . 9 14 14 Storage 14 | . 14 14 14 Energy Gun 14 | . 14 14 14 Ballistic Gun 12 | . 11 14 13 Special Weapon 1 | . 2 . . Peak Build Rating 9 | 7 8 9 9 Average Rating 7 | 5 7 8 8 On Entrance 6 | . 7 8 9 Naked Turns . | . . . . Heaviest Build 15 | 14 15 15 15 Greatest Support 40 | 26 40 20 20 Greatest Overweight (x) 1 | . 1 . . Average Overweight (x) . | . . . . Largest Inventory Capacity 8 | 8 8 8 8 Average Capacity 7 | 7 8 8 8 Most Carried 8 | 8 8 8 8 Average Carried 7 | 4 7 7 8 Final Capacity 8 | 8 8 8 8 Final Carried 8 | 8 8 8 8 Class Distribution -------------------- 100% | Mutant Dominant Class ---------------- Mutant | -10/Materials Mutant | -10/Mines Mutant | -10/Subcaves Resources | -11 -10 -10 -10 ----------- Run | Yrd Mat Min Sub Matter Collected 513 | 283 173 47 10 Remotely . | . . . . Salvage Created 918 | 124 673 89 32 Parts 55 | 9 33 11 2 Haulers Intercepted . | . . . . Recyclers Shooed . | . . . . Parts Field Recycled . | . . . . Retrieved Matter . | . . . . Parts Self-Destructed 7 | . . . 7 Prevented . | . . . . Kills | -11 -10 -10 -10 ------- Run | Yrd Mat Min Sub Combat Hostiles Destroyed 19 | . 13 5 1 Guns 16 | . 10 5 1 AOE 3 | . 3 . . Classes Destroyed 7 | 2 4 . 1 Worker 4 | . 3 1 . Tunneler 2 | 2 . . . Recycler 4 | 1 3 . . Watcher 3 | . 3 . . Swarmer 14 | . 9 5 . Grunt 4 | . 4 . . Subdweller 1 | . . . 1 Best Kill Streak 3 | 2 3 2 1 Combat Bots Only 3 | . 3 2 1 Max Kills in Single Turn 2 | 1 2 1 1 Gunslinging 1 | . 1 . . Exploded 2 | . 2 . . Melee . | . . . . Uniques/NPCs Destroyed . | . . . . Combat | -11 -10 -10 -10 -------- Run | Yrd Mat Min Sub Hostile Shots Fired 136 | . 81 38 17 Missed 35 | . 18 12 5 Hits 101 | . 63 26 12 Projectile 101 | . 63 26 12 Damage Taken 1184 | . 721 213 250 Core 267 | . 145 40 82 Absorbed by Shields . | . . . . Core Remaining (%) 100 | 100 . . . Volleys Fired 122 | 3 82 27 10 Largest 2 | 2 2 2 2 Hottest 165 | 60 165 85 100 Shots Fired 214 | 6 135 54 19 Gun 185 | 6 107 54 18 Cannon . | . . . . Launcher . | . . . . Special 29 | . 28 . 1 Kinetic 92 | 3 53 27 9 Thermal 80 | . 43 27 10 Explosive . | . . . . Electromagnetic 42 | 3 39 . . Robot Hit Streak 7 | 2 7 5 7 Robot Miss Streak 7 | 2 7 6 1 Penetration Max . | . . . . Secondary Targets 2 | . 1 1 . Max Gunslinging Chain 1 | . 1 1 . Shots Hit Robots 94 | 2 56 25 11 Core Hits 41 | 3 28 7 3 Critical Kills . | . . . . Critical Parts Destroyed . | . . . . Critical Strikes 1 | . . . 1 Burn 1 | . . . 1 Melee Attacks . | . . . . Impact . | . . . . Slashing . | . . . . Piercing . | . . . . Sneak Attacks . | . . . . Combat Hostiles . | . . . . Follow-up Attacks . | . . . . Damage Inflicted 1324 | 35 920 291 78 Guns 1052 | 35 648 291 78 Cannons . | . . . . Explosions 272 | . 272 . . Melee . | . . . . Ramming . | . . . . Kinetic 350 | 20 176 119 35 Thermal 439 | . 224 172 43 Explosive 184 | . 184 . . Electromagnetic 351 | 15 336 . . Impact . | . . . . Slashing . | . . . . Piercing . | . . . . Highest Corruption . | . . . . Average Corruption . | . . . . Corruption Purged . | . . . . Corruption Blocked . | . . . . Overload Shots . | . . . . Overflow Damage 102 | . 102 . . Projectiles . | . . . . Explosions 102 | . 102 . . Melee . | . . . . Knockbacks . | . . . . Impact . | . . . . Kinetic . | . . . . Secondary . | . . . . Self-Inflicted Damage 91 | . 91 . . Shots 2 | . 2 . . Rammed . | . . . . Targets Rammed . | . . . . Kicked . | . . . . Crushed . | . . . . Highest Temperature 457 | 40 156 457 16 Average Temperature 96 | 21 40 209 4 Received Heat Transfer 264 | . 192 . 72 Effects 8 | . . 8 . Shutdowns 3 | . . 3 . Energy Bleed 3 | . . 3 . Damage (minor) 2 | . . 2 . Siege Activations . | . . . . Martial Activations . | . . . . Shielding Activations . | . . . . Robots Disrupted . | . . . . Combat Hostiles . | . . . . Robots Corrupted . | . . . . Combat Hostiles . | . . . . Parts Fried . | . . . . Impact Corruptions . | . . . . Robots Melted . | . . . . Combat Hostiles . | . . . . Parts Melted . | . . . . Heat Transferred 1051 | . 459 407 185 Parts Sabotaged . | . . . . Parts Stolen . | . . . . Parts Stripped . | . . . . Power Chain Reactions 3 | . 3 . . Alert | -11 -10 -10 -10 ------- Run | Yrd Mat Min Sub Maximum Alert Level . | . . . . Low Security (%) 100 | 100 100 100 . Level 1 . | . . . . Level 2 . | . . . . Level 3 . | . . . . Level 4 . | . . . . Level 5 . | . . . . High Security . | . . . . Max Security . | . . . . Peak Influence 123 | 10 123 100 . Initial 28 | . . 28 . Average 41 | 1 45 38 . Influence Increases 742 | 15 572 155 . Destroy 0b10 Robot/C 360 | . 260 100 . Destroy 0b10 Robot/NC 65 | 15 45 5 . Destroy Leader 76 | . 56 20 . Successful Hack 33 | . 33 . . Disable Machine 15 | . 15 . . Destroy Structure 58 | . 58 . . Lose Combat Pursuer 135 | . 105 30 . Influence Decreases 742 | 15 497 179 51 Entered New Map 74 | . . 47 27 Time Decay 608 | 15 437 132 24 Lost Part 60 | . 60 . . Squads Dispatched 2 | . 2 . . Investigation 1 | . 1 . . Extermination . | . . . . Reinforcement 1 | . 1 . . Assault . | . . . . Garrison . | . . . . Intercept . | . . . . Searches Triggered . | . . . . Construction Impeded . | . . . . Haulers Reinforced . | . . . . Active Scanning Responses . | . . . . Cargo Convoy Interrupts . | . . . . Stealth | -11 -10 -10 -10 --------- Run | Yrd Mat Min Sub Distress Signals 2 | . 2 . . Communications Jammed . | . . . . Distress Signals . | . . . . Times Spotted 34 | . 25 7 2 Peak Tracking Total 6 | . 5 6 2 Tactical Retreats 6 | . 5 1 . Traps | -11 -10 -10 -10 ------- Run | Yrd Mat Min Sub Traps Triggered . | . . . . Indirectly . | . . . . Trap Hack Attempts . | . . . . Triggered . | . . . . Disarmed . | . . . . Reprogrammed . | . . . . Reused . | . . . . Traps Extracted . | . . . . Installed . | . . . . Triggered . | . . . . Machines | -11 -10 -10 -10 ---------- Run | Yrd Mat Min Sub Machines Disabled 1 | . 1 . . Max in Single Turn 1 | . 1 . . Machines Repaired . | . . . . Machines Dismantled . | . . . . Machines Sabotaged . | . . . . Overloaded Fab Kills . | . . . . Hacking | -11 -10 -10 -10 --------- Run | Yrd Mat Min Sub Machines Accessed 11 | . 11 . . Terminals 8 | . 8 . . Fabricators . | . . . . Repair Stations 1 | . 1 . . Recycling Units 2 | . 2 . . Scanalyzers . | . . . . Garrison Access . | . . . . Total Hacks 41 | . 41 . . Successful 18 | . 18 . . Failed 22 | . 22 . . Catastrophic 3 | . 3 . . Database Lockouts 1 | . 1 . . Manual 26 | . 26 . . Terminals 32 | . 32 . . Fabricators . | . . . . Repair Stations 2 | . 2 . . Recycling Units 7 | . 7 . . Scanalyzers . | . . . . Garrison Access . | . . . . Terminal Hacks 12 | . 12 . . Robot Analysis 1 | . 1 . . Prototype ID Bank 2 | . 2 . . Emergency Access Points 1 | . 1 . . Terminal Index 1 | . 1 . . Alert Level 1 | . 1 . . Locate Traps 4 | . 4 . . Dispatch Records 1 | . 1 . . Patrol Status 1 | . 1 . . Fabricator Hacks . | . . . . Repair Station Hacks 1 | . 1 . . Scan Component 1 | . 1 . . Recycling Unit Hacks 2 | . 2 . . Report Inventory 1 | . 1 . . Retrieve Components 1 | . 1 . . Scanalyzer . | . . . . Garrison Access Hacks . | . . . . Unauthorized Hacks 3 | . 3 . . Terminals 2 | . 2 . . Botnet 1 | . 1 . . Operators 1 | . 1 . . Fabricators . | . . . . Repair Stations . | . . . . Recycling Units 1 | . 1 . . Reject 1 | . 1 . . Scanalyzers . | . . . . Garrison Access . | . . . . Data Cores Recovered . | . . . . Used . | . . . . Hacking Detections 11 | . 11 . . Full Trace Events . | . . . . Feedback Events . | . . . . Feedback Blocked . | . . . . Robot Schematics Acquired . | . . . . Robots Built . | . . . . Authchips . | . . . . Time . | . . . . Total Robot Build Rating . | . . . . Part Schematics Acquired . | . . . . Parts Built . | . . . . Authchips . | . . . . Time . | . . . . Total Part Build Rating . | . . . . Parts Repaired . | . . . . Time . | . . . . Parts Recycled . | . . . . Recycled Matter . | . . . . Retrieved Matter . | . . . . Retrieved Components 9 | . 9 . . Parts Scanalyzed . | . . . . Part Schematics Acquired . | . . . . Parts Damaged . | . . . . Bothacking | -11 -10 -10 -10 ------------ Run | Yrd Mat Min Sub Used RIF Installer . | . . . . Robots Hacked . | . . . . Non-combat . | . . . . Combat . | . . . . Robot Hacks Applied . | . . . . Relay Couplers Released . | . . . . Fabnet Peak Effective % . | . . . . Robots Rewired . | . . . . Allies Hacked . | . . . . Hacks Repelled . | . . . . Allies | -11 -10 -10 -10 -------- Run | Yrd Mat Min Sub Total Allies . | . . . . Largest Group . | . . . . Highest-Rated Group . | . . . . Highest-Rated Ally . | . . . . Total Orders . | . . . . Ally Attacks . | . . . . Total Damage . | . . . . Kills . | . . . . Allies Corrupted . | . . . . Allies Melted . | . . . . Intel | -11 -10 -10 -10 ------- Run | Yrd Mat Min Sub Active Infowar (turns) 1331 | 46 571 447 267 Seismic 1331 | 46 571 447 267 Robot Analysis Total 1 | . 1 . . Derelict Logs Recovered 3 | . . 2 1 Drone Launches . | . . . . Drone Recoveries . | . . . . Exploration | -11 -10 -10 -10 ------------- Run | Yrd Mat Min Sub Turns Passed 2571 | 108 1749 447 267 Spaces Moved 2052 | 86 1522 289 155 Core 5 | 5 . . . Treads 1 | . 1 . . Legs 661 | . 217 289 155 Wheels 1385 | 81 1304 . . Hover . | . . . . Flight . | . . . . Fastest Speed 50 | 50 80 120 120 Average Speed 95 | 84 88 120 120 Slowest Speed 160 | 90 160 120 120 Overloaded Moves . | . . . . Propulsion Burnouts . | . . . . Robots Hopped . | . . . . Potential Cave-ins . | . . . . Cave-ins Triggered . | . . . . Exploration Rate (%) 39 | 4 99 46 7 Regions Visited 3 Branch Regions 2 Pre-discovered Areas 1 | . . 1 . Known Exits Taken 1 | . . 1 . Unknown Exits Taken 2 | 1 1 . . Scrap Searched . | . . . . Spaces Dug 12 | . 12 . . Terrain Destroyed 70 | . 70 . . Melee . | . . . . Projectile 25 | . 25 . . AOE 45 | . 45 . . Terrain Rammed . | . . . . Walls Destroyed . | . . . . Machines Disabled . | . . . . Actions | -11 -10 -10 -10 --------- Run | Yrd Mat Min Sub Total 2409 | 111 1741 341 216 Wait 179 | 7 104 21 47 Move 2049 | 85 1521 288 155 Hop . | . . . . Pick Up 17 | 7 9 1 . Fast Attach 12 | 8 3 . 1 Attach 7 | . 6 1 . Detach 3 | 1 2 . . Swap 9 | . 6 1 2 Drop 11 | . 8 2 1 Fire 122 | 3 82 27 10 Melee . | . . . . Ram . | . . . . Kick . | . . . . Crush . | . . . . Escape Stasis . | . . . . Rewire . | . . . . Trap . | . . . . Miscellaneous . | . . . . Route ------- -11/Scrapyard -10/Materials (discovered 5 exits: [*Mat x3] / [*Min x2]) -10/Mines -10/Subcaves (discovered 1 exit: *Mat) History --------- Turn | Location | Event 17 | -11/Scrapyard | Discovered new exit (range 16) 109 | -11/Scrapyard | Entered Materials 264 | -10/Materials | Discovered new exit (range 13) 264 | -10/Materials | Discovered new exit (range 6) 300 | -10/Materials | Build established: Mutant 334 | -10/Materials | Central database locked down 340 | -10/Materials | Discovered new exit (range 16) 1068 | -10/Materials | Discovered new exit (range 9) 1390 | -10/Materials | Discovered new exit (range 7) 1574 | -10/Materials | Core integrity fell below 50% 1612 | -10/Materials | Lost 3 parts (1p1n1w) 1858 | -10/Materials | Entered Mines 1859 | -10/Mines | Assembled infested the area 1956 | -10/Mines | Identified exit to Subcaves 1994 | -10/Mines | Learned location of Storage (-8) 2279 | -10/Mines | Found a damaged Exp. Sensor Array with a note attached 2283 | -10/Mines | Found Prototype Device 2305 | -10/Mines | Entered Subcaves 2306 | -10/Subcaves | Approached by a straggling Scientist 2307 | -10/Subcaves | Identified exit to Materials 2562 | -10/Subcaves | Core integrity fell below 20% 2572 | -10/Subcaves | Destroyed by 8U-FVJ(R) with Subdweller Laser Last Messages --------------- 02309_ PP-XSG(c): "Hey, let me tag along and I can get us both out of this nasty situation. At least I think I can... The group I got separated from was talking about a shortcut back to the UFD." PP-XSG(c): "I think it's somewhere north of here" 02403_ Acquired 7 matter. PP-XSG(c): "I think it's somewhere northwest of here" 02411_ Acquired 3 matter. PP-XSG(c): "I think it's somewhere northwest of here" 02504_ Dropped Particle Gun. 02504_ Acquired Particle Gun. PP-XSG(c): "I think it's somewhere northwest of here" 02563_ Ion Engine destroyed. 02567_ UI-3I0(R) suffers critical hit (Burn). 02567_ UI-3I0(R) destroyed. Map ----- +----------------------------------------------------+ | ??????????????????????????????????????????? | | ??????????????????????????????????????????? | | ?????????????????????# ??????????????????? | | ?????????????????????#$ ??????????????????? | | ????????????????????## ??????????????????? | | ????????????????????# #?????????????????? | | ????????????????????# ###??????????????? | | ???????????????????## "##?????????????? | | ????????????????#### #?????????????? | | ????????????????? #?????????????? | | ???????????????#"" #?????????????? | | ???????????????? " | #?????????????? | | ????????????????<" #?????????????? | | ???????????????? " ? #??????????????? | | ?????????????????" ??# #???????????????? | | ????????????????? ??# #???????????????? | | ??????? #??????## #?## " ##??????????????? | | ??????# ??## ### " " ##?????????????? | | ??????# % # " # """ #?????????????? | | ???????# " ## "#?????????????? | | ??????????#"& # #### "#?????????????? | | ??????????# % ??## ##?## #?????????????? | | ??????????# ?????# #??#R%!#?????????????? | | ??????????#??????## #??# & #?????????????? | | ?????????????????# #??# #?????????????? | | ?????????????????# #?##@ #?????????????? | | ?????????????????# ### #?????????????? | | ?????????????????# c##?????????????? | | ?????????????????# ##??????????????? | | ????????????????## # ###???????????????? | | ???????????????## ###?????????????????? | | ???????????????# ##??????????????????? | | ???????????????### ##?????????????????? | | ????????????????## #?????????????????? | | ???????????????## ####?????????????????? | | ???????????????# ###??????????????????? | | ???????????????## ##?????????????????? | | ????????????????# ##????????????????? | | ????????????????# %#????????????????? | | ????????????????# ##????????????????? | | ????????????????# #?????????????????? | | ????????????????## ##?????????????????? | | ?????????????????# ## #??????????????????? | | ????????????????## # ##?????????????????? | | ????????????????# # #?????????????????? | | ????????????????## ####?????????????????? | | ???###?#####????# #????????????????????? | | #### ### ####### # #????????????????????? | | ## # # ###???????????????????? | | #???????????????????? | +----------------------------------------------------+ Best States ------------- Heat Dissipation 35 Energy Generation 10 Energy Capacity 250 Matter Stores 300 Matter Capacity 300 Sight Range 16 Terrain Scan Density 10 Evasion (%) 55 Item Schematics ----------------- None Robot Schematics ------------------ None Fabricated ------------ Nothing Repaired ---------- Nothing Alien Tech Used ----------------- None Achievements -------------- None Challenges ------------ None Game ------ Seed GuidanceBiometalBoomstick Manual? 0 Play Time 00:18:44 Cumulative 225.9 hours Start 2025.06.21 @ 15:14:27 End 2025.06.21 @ 16:02:54 Sessions 1 Manual Loads 0 Difficulty Rogue Special Mode None Game No. 216 Rogue 216 Adventurer 0 Explorer 0 Win Type - Total 1 Types 1/0/0/0/0/0/0/0/0/0 Lore% 55 Gallery% 59 Achievement% 47 Wizard Run 0 Options --------- Layout 2 ASCII 1 Keyboard 1 Movement Numpad Keybinds 0 Fullscreen 2 Font 32/TamsynBold Map View 50x44 Zoom Use 0% Tactical HUD 1 Map Filters NONE Filters NONE Steam 1 RUN: 336d01c5-3de6-4910-81ab-42d294e8056c